[Event "Esbjerg Efterår 2024 - Esbjergmesterskabet"]
[Site "Esbjerg, Denmark"]
[Date "2024.10.20"]
[Round "6.5"]
[White "Guindy, Esmat Susanne"]
[Black "Saravana, Vedant Kumar"]
[Result "1-0"]
[TimeControl "1.-3. 20 min + 5 sek, 4.-7. 90 min + 30 sek + 15 min efter 40 træk"]
[WhiteElo "2025"]
[BlackElo "2115"]

1. d4 {[%clk 01:28:42]} {[%emt 00:02:18]} d5 {[%clk 01:30:51]} {[%emt
00:00:10]} 2. c4 {[%clk 01:29:00]} {[%emt 00:00:11]} c6 {[%clk 01:31:16]}
{[%emt 00:00:05]} 3. g3 {[%clk 01:28:34]} {[%emt 00:00:56]} Nf6 {[%clk
01:30:20]} {[%emt 00:01:27]} 4. Bg2 {[%clk 01:28:40]} {[%emt 00:00:23]} dxc4
{[%clk 01:24:13]} {[%emt 00:06:38]} 5. Nc3 {[%clk 01:24:01]} {[%emt 00:05:09]}
e6 {[%clk 01:13:44]} {[%emt 00:10:59]} 6. Nf3 {[%clk 01:20:44]} {[%emt
00:03:46]} Nbd7 {[%clk 01:12:23]} {[%emt 00:01:51]} 7. a4 {[%clk 01:18:03]}
{[%emt 00:03:12]} a5 {[%clk 01:10:03]} {[%emt 00:02:50]} 8. O-O {[%clk
01:15:40]} {[%emt 00:02:52]} Bb4 {[%clk 01:07:57]} {[%emt 00:02:36]} 9. Qc2
{[%clk 01:08:54]} {[%emt 00:07:16]} Qe7 {[%clk 00:55:54]} {[%emt 00:12:33]} 10.
e4 {[%clk 00:57:26]} {[%emt 00:11:57]} e5 {[%clk 00:52:41]} {[%emt 00:03:44]}
11. d5 {[%clk 00:51:19]} {[%emt 00:06:37]} O-O {[%clk 00:46:02]} {[%emt
00:07:09]} 12. Rd1 {[%clk 00:38:24]} {[%emt 00:13:25]} Rd8 {[%clk 00:35:24]}
{[%emt 00:11:08]} 13. Be3 {[%clk 00:29:57]} {[%emt 00:08:58]} Nc5 {[%clk
00:29:48]} {[%emt 00:06:06]} 14. dxc6 {[%clk 00:27:24]} {[%emt 00:03:03]} Rxd1+
{[%clk 00:29:39]} {[%emt 00:00:40]} 15. Rxd1 {[%clk 00:27:43]} {[%emt
00:00:11]} bxc6 {[%clk 00:29:37]} {[%emt 00:00:32]} 16. Na2 {[%clk 00:20:51]}
{[%emt 00:07:21]} Nd3 {[%clk 00:16:36]} {[%emt 00:13:31]} 17. Nxb4 {[%clk
00:16:17]} {[%emt 00:05:04]} axb4 {[%clk 00:14:55]} {[%emt 00:02:11]} 18. b3
{[%clk 00:15:57]} {[%emt 00:00:50]} Bg4 {[%clk 00:14:00]} {[%emt 00:01:25]} 19.
Qxc4 {[%clk 00:08:15]} {[%emt 00:08:12]} Nb2 {[%clk 00:11:40]} {[%emt
00:02:50]} 20. Qxc6 {[%clk 00:08:37]} {[%emt 00:00:08]} Rc8 {[%clk 00:10:03]}
{[%emt 00:02:07]} 21. Qd6 {[%clk 00:09:01]} {[%emt 00:00:06]} Qxd6 {[%clk
00:06:51]} {[%emt 00:03:42]} 22. Rxd6 {[%clk 00:09:26]} {[%emt 00:00:05]} Nxe4
{[%clk 00:06:35]} {[%emt 00:00:46]} 23. Rd5 {[%clk 00:06:14]} {[%emt 00:03:42]}
Nc3 {[%clk 00:03:45]} {[%emt 00:03:20]} 24. Rd2 {[%clk 00:03:54]} {[%emt
00:02:49]} e4 {[%clk 00:03:01]} {[%emt 00:01:15]} 25. h3 {[%clk 00:02:13]}
{[%emt 00:02:12]} exf3 {[%clk 00:01:15]} {[%emt 00:02:16]} 26. hxg4 {[%clk
00:02:16]} {[%emt 00:00:27]} fxg2 {[%clk 00:01:25]} {[%emt 00:00:20]} 27. Rxb2
{[%clk 00:02:34]} {[%emt 00:00:11]} Ne4 {[%clk 00:00:56]} {[%emt 00:00:58]} 28.
Kxg2 {[%clk 00:02:40]} {[%emt 00:00:25]} Kf8 {[%clk 00:00:51]} {[%emt
00:00:35]} 29. Kf3 {[%clk 00:02:26]} {[%emt 00:00:43]} Nc3 {[%clk 00:00:52]}
{[%emt 00:00:31]} 30. Rc2 {[%clk 00:02:03]} {[%emt 00:00:54]} Ke8 {[%clk
00:00:44]} {[%emt 00:00:38]} 31. Bd4 {[%clk 00:02:20]} {[%emt 00:00:12]} f6
{[%clk 00:01:00]} {[%emt 00:00:14]} 32. Bxc3 {[%clk 00:02:04]} {[%emt
00:00:46]} bxc3 {[%clk 00:01:11]} {[%emt 00:00:19]} 33. Ke2 {[%clk 00:02:27]}
{[%emt 00:00:07]} Kd7 {[%clk 00:01:33]} {[%emt 00:00:09]} 34. Kd3 {[%clk
00:02:51]} {[%emt 00:00:06]} Rc6 {[%clk 00:01:39]} {[%emt 00:00:24]} 35. Rxc3
{[%clk 00:03:12]} {[%emt 00:00:09]} Rd6+ {[%clk 00:02:05]} {[%emt 00:00:04]} 36.
Ke2 {[%clk 00:02:57]} {[%emt 00:00:44]} Re6+ {[%clk 00:02:31]} {[%emt
00:00:05]} 37. Re3 {[%clk 00:03:03]} {[%emt 00:00:24]} Rc6 {[%clk 00:02:56]}
{[%emt 00:00:05]} 38. Kd2 {[%clk 00:03:22]} {[%emt 00:00:11]} g6 {[%clk
00:03:01]} {[%emt 00:00:25]} 39. Rc3 {[%clk 00:03:11]} {[%emt 00:00:41]} Rb6
{[%clk 00:03:21]} {[%emt 00:00:10]} 40. Kc2 {[%clk 00:03:20]} {[%emt 00:00:22]}
h5 {[%clk 00:03:45]} {[%emt 00:00:05]} 41. gxh5 {[%clk 00:03:39]} {[%emt
00:00:10]} gxh5 {[%clk 00:04:09]} {[%emt 00:00:06]} 42. Rc5 {[%clk 00:03:56]}
{[%emt 00:00:14]} Re6 {[%clk 00:04:30]} {[%emt 00:00:09]} 43. Kd3 {[%clk
00:03:05]} {[%emt 00:01:21]} Rd6+ {[%clk 00:04:54]} {[%emt 00:00:07]} 44. Kc4
{[%clk 00:03:10]} {[%emt 00:00:25]} Ke6 {[%clk 00:05:17]} {[%emt 00:00:07]} 45.
Rxh5 {[%clk 00:03:04]} {[%emt 00:00:37]} Rd2 {[%clk 00:05:41]} {[%emt
00:00:05]} 46. a5 {[%clk 00:02:20]} {[%emt 00:01:14]} Rxf2 {[%clk 00:05:52]}
{[%emt 00:00:20]} 47. a6 {[%clk 00:01:57]} {[%emt 00:00:52]} Ra2 {[%clk
00:06:14]} {[%emt 00:00:08]} 48. Kb5 {[%clk 00:02:16]} {[%emt 00:00:12]} Ra3
{[%clk 00:06:31]} {[%emt 00:00:13]} 49. b4 {[%clk 00:02:19]} {[%emt 00:00:27]}
Rxg3 {[%clk 00:06:52]} {[%emt 00:00:09]} 50. Kb6 {[%clk 00:02:29]} {[%emt
00:00:20]} f5 {[%clk 00:07:06]} {[%emt 00:00:16]} 51. a7 {[%clk 00:02:48]}
{[%emt 00:00:11]} Ra3 {[%clk 00:07:16]} {[%emt 00:00:19]} 52. Rh8 {[%clk
00:03:07]} {[%emt 00:00:12]} f4 {[%clk 00:07:14]} {[%emt 00:00:32]} 53. a8=Q
{[%clk 00:03:29]} {[%emt 00:00:08]} Rxa8 {[%clk 00:07:41]} {[%emt 00:00:03]} 54.
Rxa8 {[%clk 00:03:49]} {[%emt 00:00:09]} f3 {[%clk 00:08:08]} {[%emt 00:00:03]}
55. Kc7 {[%clk 00:04:07]} {[%emt 00:00:13]} Ke7 {[%clk 00:08:33]} {[%emt
00:00:06]} 56. Ra3 {[%clk 00:04:23]} {[%emt 00:00:13]} f2 {[%clk 00:08:59]}
{[%emt 00:00:04]} 57. Re3 {[%clk 00:04:46]} {[%emt 00:00:07]} Kf7 {[%clk
00:09:25]} {[%emt 00:00:05]} 58. Rf3 {[%clk 00:05:11]} {[%emt 00:00:05]} Kg7
{[%clk 00:09:49]} {[%emt 00:00:05]} 59. b5 {[%clk 00:04:44]} {[%emt 00:00:57]}
1-0

[Event "Esbjerg Efterår 2024 - Esbjergmesterskabet"]
[Site "Esbjerg, Denmark"]
[Date "2024.10.20"]
[Round "6.6"]
[White "Rossen, Claus"]
[Black "Bønnelykke, Ole"]
[Result "1-0"]
[TimeControl "1.-3. 20 min + 5 sek, 4.-7. 90 min + 30 sek + 15 min efter 40 træk"]
[WhiteElo "2072"]
[BlackElo "1988"]

1. d4 {[%clk 01:30:57]} {[%emt 00:00:02]} e6 {[%clk 01:30:03]} {[%emt
00:00:57]} 2. e4 {[%clk 01:31:01]} {[%emt 00:00:26]} d5 {[%clk 01:30:25]}
{[%emt 00:00:08]} 3. Nc3 {[%clk 01:31:26]} {[%emt 00:00:05]} dxe4 {[%clk
01:30:43]} {[%emt 00:00:13]} 4. Nxe4 {[%clk 01:31:49]} {[%emt 00:00:07]} Nf6
{[%clk 01:31:05]} {[%emt 00:00:07]} 5. Nxf6+ {[%clk 01:31:51]} {[%emt
00:00:28]} gxf6 {[%clk 01:31:23]} {[%emt 00:00:12]} 6. Nf3 {[%clk 01:32:17]}
{[%emt 00:00:04]} a6 {[%clk 01:31:13]} {[%emt 00:00:41]} 7. Bd3 {[%clk
01:30:03]} {[%emt 00:02:43]} c5 {[%clk 01:31:22]} {[%emt 00:00:20]} 8. Be3
{[%clk 01:29:30]} {[%emt 00:01:03]} Qc7 {[%clk 01:29:25]} {[%emt 00:02:28]} 9.
Qe2 {[%clk 01:28:47]} {[%emt 00:01:13]} b5 {[%clk 01:28:11]} {[%emt 00:01:44]}
10. dxc5 {[%clk 01:03:57]} {[%emt 00:25:20]} Bxc5 {[%clk 01:26:02]} {[%emt
00:02:39]} 11. O-O {[%clk 01:04:06]} {[%emt 00:00:20]} Bb7 {[%clk 01:23:48]}
{[%emt 00:02:44]} 12. Rac1 {[%clk 01:00:05]} {[%emt 00:04:31]} Nd7 {[%clk
01:21:12]} {[%emt 00:03:07]} 13. c4 {[%clk 00:57:48]} {[%emt 00:02:47]} b4
{[%clk 01:19:58]} {[%emt 00:01:43]} 14. b3 {[%clk 00:57:41]} {[%emt 00:00:39]}
h5 {[%clk 01:18:56]} {[%emt 00:01:30]} 15. Nd2 {[%clk 00:56:46]} {[%emt
00:01:25]} O-O-O {[%clk 01:11:18]} {[%emt 00:08:08]} 16. Be4 {[%clk 00:55:27]}
{[%emt 00:01:50]} Ne5 {[%clk 01:07:42]} {[%emt 00:04:05]} 17. Bxb7+ {[%clk
00:48:22]} {[%emt 00:07:36]} Kxb7 {[%clk 01:07:19]} {[%emt 00:00:53]} 18. Bxc5
{[%clk 00:46:29]} {[%emt 00:02:23]} Qxc5 {[%clk 01:07:09]} {[%emt 00:00:40]} 19.
Ne4 {[%clk 00:45:21]} {[%emt 00:01:37]} Qe7 {[%clk 01:02:39]} {[%emt 00:05:01]}
20. c5 {[%clk 00:43:53]} {[%emt 00:01:59]} Nc6 {[%clk 01:00:22]} {[%emt
00:02:46]} 21. Nd6+ {[%clk 00:39:43]} {[%emt 00:04:40]} Ka7 {[%clk 00:58:28]}
{[%emt 00:02:24]} 22. a3 {[%clk 00:39:59]} {[%emt 00:00:15]} bxa3 {[%clk
00:57:01]} {[%emt 00:01:57]} 23. Ra1 {[%clk 00:40:05]} {[%emt 00:00:24]} Rxd6
{[%clk 00:55:49]} {[%emt 00:01:41]} 24. cxd6 {[%clk 00:39:11]} {[%emt
00:01:25]} Qxd6 {[%clk 00:56:04]} {[%emt 00:00:15]} 25. Rfd1 {[%clk 00:30:54]}
{[%emt 00:08:47]} Nd4 {[%clk 00:55:35]} {[%emt 00:00:58]} 26. Qc4 {[%clk
00:31:02]} {[%emt 00:00:23]} Rd8 {[%clk 00:54:51]} {[%emt 00:01:13]} 27. b4
{[%clk 00:29:06]} {[%emt 00:02:27]} Rd7 {[%clk 00:54:41]} {[%emt 00:00:39]} 28.
Qc5+ {[%clk 00:28:15]} {[%emt 00:01:22]} Qxc5 {[%clk 00:54:17]} {[%emt
00:00:53]} 29. bxc5 {[%clk 00:28:41]} {[%emt 00:00:05]} Rd5 {[%clk 00:51:53]}
{[%emt 00:02:53]} 30. Kf1 {[%clk 00:25:19]} {[%emt 00:03:53]} e5 {[%clk
00:50:33]} {[%emt 00:01:49]} 31. Rxa3 {[%clk 00:22:42]} {[%emt 00:03:08]} Rxc5
{[%clk 00:46:26]} {[%emt 00:04:37]} 32. Rda1 {[%clk 00:15:34]} {[%emt
00:07:38]} Rc6 {[%clk 00:45:41]} {[%emt 00:01:15]} 33. Rh3 {[%clk 00:15:57]}
{[%emt 00:00:07]} Kb6 {[%clk 00:44:10]} {[%emt 00:02:00]} 34. Rxh5 {[%clk
00:15:30]} {[%emt 00:00:57]} a5 {[%clk 00:44:02]} {[%emt 00:00:38]} 35. Rh8
{[%clk 00:14:53]} {[%emt 00:01:07]} Nc2 {[%clk 00:40:12]} {[%emt 00:04:19]} 36.
Rb1+ {[%clk 00:13:19]} {[%emt 00:02:05]} Ka7 {[%clk 00:35:32]} {[%emt
00:05:11]} 37. Rbb8 {[%clk 00:10:21]} {[%emt 00:03:28]} Ka6 {[%clk 00:30:00]}
{[%emt 00:06:02]} 38. h4 {[%clk 00:09:24]} {[%emt 00:01:27]} Nd4 {[%clk
00:29:44]} {[%emt 00:00:46]} 39. Rhc8 {[%clk 00:09:12]} {[%emt 00:00:42]} a4
{[%clk 00:27:25]} {[%emt 00:02:49]} 40. Ra8+ {[%clk 00:06:30]} {[%emt
00:03:13]} Kb5 {[%clk 00:25:51]} {[%emt 00:02:04]} 41. Rcb8+ {[%clk 00:06:47]}
{[%emt 00:00:13]} Kc5 {[%clk 00:25:25]} {[%emt 00:00:56]} 42. Rxa4 {[%clk
00:06:49]} {[%emt 00:00:28]} Kd5 {[%clk 00:24:38]} {[%emt 00:01:17]} 43. Ra1
{[%clk 00:03:41]} {[%emt 00:03:37]} f5 {[%clk 00:21:24]} {[%emt 00:03:45]} 44.
g3 {[%clk 00:00:36]} {[%emt 00:03:35]} Nf3 {[%clk 00:16:03]} {[%emt 00:05:49]}
45. Kg2 {[%clk 00:11:08]} {[%emt 00:05:00]} e4 {[%clk 00:30:18]} {[%emt
00:01:15]} 46. Re8 {[%clk 00:11:32]} {[%emt 00:00:06]} Rg6 {[%clk 00:28:48]}
{[%emt 00:01:59]} 47. Rd1+ {[%clk 00:11:38]} {[%emt 00:00:24]} Kc6 {[%clk
00:28:29]} {[%emt 00:00:49]} 48. Kh3 {[%clk 00:10:20]} {[%emt 00:01:48]} 1-0

[Event "Esbjerg Efterår 2024 - Esbjergmesterskabet"]
[Site "Esbjerg, Denmark"]
[Date "2024.10.20"]
[Round "6.7"]
[White "Paludan, Noah"]
[Black "Wyff, Poul"]
[Result "1-0"]
[TimeControl "1.-3. 20 min + 5 sek, 4.-7. 90 min + 30 sek + 15 min efter 40 træk"]
[WhiteElo "1979"]
[BlackElo "1786"]

1. e4 {[%clk 01:23:24]} {[%emt 00:07:34]} c6 {[%clk 01:30:52]} {[%emt
00:00:10]} 2. Nc3 {[%clk 01:22:46]} {[%emt 00:01:07]} d5 {[%clk 01:31:05]}
{[%emt 00:00:17]} 3. Nf3 {[%clk 01:22:58]} {[%emt 00:00:17]} dxe4 {[%clk
01:30:52]} {[%emt 00:00:45]} 4. Nxe4 {[%clk 01:23:13]} {[%emt 00:00:12]} Nf6
{[%clk 01:31:13]} {[%emt 00:00:11]} 5. Qe2 {[%clk 01:23:28]} {[%emt 00:00:14]}
Nxe4 {[%clk 01:31:17]} {[%emt 00:00:27]} 6. Qxe4 {[%clk 01:23:35]} {[%emt
00:00:21]} Be6 {[%clk 01:31:37]} {[%emt 00:00:12]} 7. c4 {[%clk 01:12:49]}
{[%emt 00:11:16]} Nd7 {[%clk 01:21:56]} {[%emt 00:10:11]} 8. d4 {[%clk
01:11:51]} {[%emt 00:01:28]} g6 {[%clk 01:10:30]} {[%emt 00:11:56]} 9. Be2
{[%clk 00:52:08]} {[%emt 00:20:11]} Bg7 {[%clk 01:04:57]} {[%emt 00:06:06]} 10.
O-O {[%clk 00:50:16]} {[%emt 00:02:21]} O-O {[%clk 01:00:31]} {[%emt 00:04:57]}
11. Rd1 {[%clk 00:46:29]} {[%emt 00:04:17]} Nf6 {[%clk 00:52:58]} {[%emt
00:08:04]} 12. Qc2 {[%clk 00:44:38]} {[%emt 00:02:19]} Qc7 {[%clk 00:49:36]}
{[%emt 00:03:52]} 13. h3 {[%clk 00:43:13]} {[%emt 00:01:55]} Bf5 {[%clk
00:41:54]} {[%emt 00:08:13]} 14. Bd3 {[%clk 00:34:08]} {[%emt 00:09:35]} Bxd3
{[%clk 00:41:45]} {[%emt 00:00:39]} 15. Rxd3 {[%clk 00:32:52]} {[%emt
00:01:44]} Rad8 {[%clk 00:39:37]} {[%emt 00:02:40]} 16. Be3 {[%clk 00:32:41]}
{[%emt 00:00:40]} e6 {[%clk 00:31:17]} {[%emt 00:08:53]} 17. Rad1 {[%clk
00:30:45]} {[%emt 00:02:25]} a6 {[%clk 00:25:20]} {[%emt 00:06:27]} 18. Qb3
{[%clk 00:28:23]} {[%emt 00:02:51]} Ne4 {[%clk 00:20:30]} {[%emt 00:05:21]} 19.
d5 {[%clk 00:19:18]} {[%emt 00:09:35]} c5 {[%clk 00:13:58]} {[%emt 00:07:02]}
20. dxe6 {[%clk 00:15:11]} {[%emt 00:04:37]} fxe6 {[%clk 00:12:24]} {[%emt
00:02:05]} 21. Rxd8 {[%clk 00:14:42]} {[%emt 00:00:58]} Rxd8 {[%clk 00:11:18]}
{[%emt 00:01:36]} 22. Rxd8+ {[%clk 00:14:57]} {[%emt 00:00:15]} Qxd8 {[%clk
00:11:45]} {[%emt 00:00:03]} 23. Qxb7 {[%clk 00:14:50]} {[%emt 00:00:37]} Qd1+
{[%clk 00:07:23]} {[%emt 00:04:52]} 24. Kh2 {[%clk 00:15:08]} {[%emt 00:00:12]}
Qd6+ {[%clk 00:07:08]} {[%emt 00:00:46]} 25. g3 {[%clk 00:14:13]} {[%emt
00:01:23]} Nf6 {[%clk 00:06:14]} {[%emt 00:01:25]} 26. Qc8+ {[%emt 00:03:46]}
Bf8 {[%clk 00:06:16]} 27. Bf4 {[%clk 00:05:27]} {[%emt 00:06:27]} Qd1 {[%clk
00:03:07]} {[%emt 00:03:39]} 28. Qxe6+ {[%clk 00:05:13]} {[%emt 00:00:44]} Kg7
{[%clk 00:03:00]} {[%emt 00:00:37]} 29. Ne5 {[%clk 00:02:37]} {[%emt 00:03:06]}
1-0

[Event "Esbjerg Efterår 2024 - Esbjergmesterskabet"]
[Site "Esbjerg, Denmark"]
[Date "2024.10.20"]
[Round "6.8"]
[White "Vinther, Christoffer"]
[Black "Iversen, Tobias"]
[Result "1/2-1/2"]
[TimeControl "1.-3. 20 min + 5 sek, 4.-7. 90 min + 30 sek + 15 min efter 40 træk"]
[WhiteElo "1800"]
[BlackElo "1936"]

1. f4 {[%clk 01:30:56]} {[%emt 00:00:03]} d5 {[%clk 01:13:23]} {[%emt
00:17:38]} 2. Nf3 {[%clk 01:31:14]} {[%emt 00:00:12]} Nd7 {[%clk 01:13:19]}
{[%emt 00:00:34]} 3. e3 {[%clk 01:31:29]} {[%emt 00:00:14]} Ngf6 {[%clk
01:13:11]} {[%emt 00:00:38]} 4. b3 {[%clk 01:31:49]} {[%emt 00:00:11]} g6
{[%clk 01:07:33]} {[%emt 00:06:07]} 5. Bb2 {[%clk 01:32:02]} {[%emt 00:00:17]}
Bg7 {[%clk 01:07:52]} {[%emt 00:00:11]} 6. Be2 {[%clk 01:32:20]} {[%emt
00:00:11]} O-O {[%clk 01:08:02]} {[%emt 00:00:20]} 7. O-O {[%clk 01:32:40]}
{[%emt 00:00:11]} Ne8 {[%clk 01:04:53]} {[%emt 00:03:40]} 8. Bxg7 {[%clk
01:32:56]} {[%emt 00:00:14]} Nxg7 {[%clk 01:04:51]} {[%emt 00:00:31]} 9. d3
{[%clk 01:33:05]} {[%emt 00:00:21]} Nf5 {[%clk 01:03:21]} {[%emt 00:02:01]} 10.
Qd2 {[%clk 01:32:39]} {[%emt 00:00:55]} Nd6 {[%clk 01:02:46]} {[%emt 00:01:05]}
11. Nc3 {[%clk 01:29:56]} {[%emt 00:03:13]} c6 {[%clk 01:00:57]} {[%emt
00:02:20]} 12. Nd1 {[%clk 01:24:15]} {[%emt 00:06:10]} e6 {[%clk 00:57:44]}
{[%emt 00:03:42]} 13. Nf2 {[%clk 01:21:27]} {[%emt 00:03:19]} f5 {[%clk
00:53:19]} {[%emt 00:04:55]} 14. g4 {[%clk 01:11:46]} {[%emt 00:10:11]} Qe7
{[%clk 00:47:28]} {[%emt 00:06:21]} 15. g5 {[%clk 01:11:03]} {[%emt 00:01:13]}
e5 {[%clk 00:47:03]} {[%emt 00:00:54]} 16. Rae1 {[%clk 01:07:53]} {[%emt
00:03:40]} e4 {[%clk 00:43:54]} {[%emt 00:03:39]} 17. Nh4 {[%clk 01:07:55]}
{[%emt 00:00:27]} Re8 {[%clk 00:40:15]} {[%emt 00:04:10]} 18. d4 {[%clk
01:07:02]} {[%emt 00:01:23]} Nf7 {[%clk 00:38:27]} {[%emt 00:02:17]} 19. Kh1
{[%clk 01:06:39]} {[%emt 00:00:53]} Nf8 {[%clk 00:37:37]} {[%emt 00:01:21]} 20.
Rg1 {[%clk 01:06:33]} {[%emt 00:00:36]} Ne6 {[%clk 00:35:33]} {[%emt 00:02:34]}
21. Rg3 {[%clk 01:00:50]} {[%emt 00:06:12]} Nxf4 {[%clk 00:34:54]} {[%emt
00:01:09]} 22. Reg1 {[%clk 00:57:48]} {[%emt 00:03:33]} Nxe2 {[%clk 00:26:02]}
{[%emt 00:09:22]} 23. Qxe2 {[%clk 00:57:35]} {[%emt 00:00:44]} Be6 {[%clk
00:26:07]} {[%emt 00:00:24]} 24. Nh3 {[%clk 00:57:25]} {[%emt 00:00:39]} Nd8
{[%clk 00:26:12]} {[%emt 00:00:25]} 25. Nf4 {[%clk 00:57:45]} {[%emt 00:00:11]}
Qf7 {[%clk 00:16:56]} {[%emt 00:09:47]} 26. Nh5 {[%clk 00:48:52]} {[%emt
00:09:23]} Bd7 {[%clk 00:14:21]} {[%emt 00:03:04]} 27. Nf6+ {[%clk 00:47:59]}
{[%emt 00:01:24]} Kg7 {[%clk 00:13:45]} {[%emt 00:01:06]} 28. Nxe8+ {[%clk
00:48:03]} {[%emt 00:00:27]} Qxe8 {[%clk 00:12:01]} {[%emt 00:02:13]} 29. Ng2
{[%clk 00:44:50]} {[%emt 00:03:43]} Ne6 {[%clk 00:12:30]} {[%emt 00:00:02]} 30.
Nf4 {[%clk 00:44:46]} {[%emt 00:00:34]} Nxf4 {[%clk 00:12:44]} {[%emt
00:00:15]} 31. exf4 {[%clk 00:44:59]} {[%emt 00:00:18]} Qe7 {[%clk 00:12:35]}
{[%emt 00:00:38]} 32. Qe3 {[%clk 00:43:46]} {[%emt 00:01:43]} Rc8 {[%clk
00:12:08]} {[%emt 00:00:57]} 33. Rh3 {[%clk 00:43:21]} {[%emt 00:00:54]} c5
{[%clk 00:11:09]} {[%emt 00:01:30]} 34. Rh6 {[%clk 00:42:45]} {[%emt 00:01:05]}
Be6 {[%clk 00:10:05]} {[%emt 00:01:34]} 35. Rg3 {[%clk 00:38:18]} {[%emt
00:04:58]} c4 {[%clk 00:08:38]} {[%emt 00:01:57]} 36. Rgh3 {[%clk 00:32:51]}
{[%emt 00:05:57]} Bg8 {[%clk 00:09:06]} {[%emt 00:00:02]} 37. R3h4 {[%clk
00:32:35]} {[%emt 00:00:46]} cxb3 {[%clk 00:08:51]} {[%emt 00:00:45]} 38. axb3
{[%clk 00:32:15]} {[%emt 00:00:51]} Rxc2 {[%clk 00:07:45]} {[%emt 00:01:34]} 39.
Rh3 {[%clk 00:20:20]} {[%emt 00:12:27]} Qa3 {[%clk 00:07:26]} {[%emt 00:00:49]}
40. Rg3 {[%clk 00:19:57]} {[%emt 00:00:53]} Qb2 {[%clk 00:06:45]} {[%emt
00:01:11]} 41. Rhh3 {[%clk 00:19:24]} {[%emt 00:01:03]} b5 {[%clk 00:06:02]}
{[%emt 00:01:13]} 42. Rg1 {[%clk 00:17:38]} {[%emt 00:02:16]} a5 {[%clk
00:04:04]} {[%emt 00:02:28]} 43. Qe1 {[%clk 00:16:52]} {[%emt 00:01:15]} b4
{[%clk 00:02:10]} {[%emt 00:02:24]} 44. Qa1 {[%clk 00:17:03]} {[%emt 00:00:19]}
Qxa1 {[%clk 00:07:04]} {[%emt 00:10:35]} 45. Rxa1 {[%clk 00:32:24]} {[%emt
00:00:10]} Rd2 {[%clk 00:07:26]} {[%emt 00:00:07]} 46. Rxa5 {[%clk 00:32:05]}
{[%emt 00:00:50]} Rxd4 {[%clk 00:07:53]} {[%emt 00:00:02]} 47. Rb5 {[%clk
00:31:53]} {[%emt 00:00:43]} Rd1+ {[%clk 00:04:01]} {[%emt 00:04:21]} 48. Kg2
{[%clk 00:31:19]} {[%emt 00:01:04]} d4 {[%clk 00:03:14]} {[%emt 00:01:17]} 49.
Rxb4 {[%clk 00:28:24]} {[%emt 00:03:26]} e3 {[%clk 00:01:47]} {[%emt 00:01:57]}
50. Kf3 {[%clk 00:25:47]} {[%emt 00:03:06]} Rf1+ {[%clk 00:01:41]} {[%emt
00:00:36]} 51. Ke2 {[%clk 00:26:05]} {[%emt 00:00:13]} Rf2+ {[%clk 00:02:01]}
{[%emt 00:00:10]} 52. Ke1 {[%clk 00:26:28]} {[%emt 00:00:06]} Rxf4 {[%clk
00:01:50]} {[%emt 00:00:38]} 53. Rxe3 {[%clk 00:26:17]} {[%emt 00:00:44]} dxe3
{[%clk 00:01:22]} {[%emt 00:00:57]} 54. Rxf4 {[%clk 00:25:03]} {[%emt
00:00:24]} Bxb3 {[%clk 00:01:22]} 1/2-1/2